lending/lending_fUSD_20250224
["ID","MTS","AMOUNT","RATE_DAILY","PERIOD"]
[354321142,1740408672414,-516.41,0.00016849,2]
[354321143,1740408672424,-500.0,0.00016849,2]
[354321144,1740408672434,-500.0,0.00016849,2]
[354321145,1740408672444,-500.0,0.00016849,2]
[354321146,1740408672454,-500.0,0.00016849,2]
[354321147,1740408672464,-977.59,0.00016849,2]
[354321148,1740408672474,-500.33,0.00016849,2]
[354321149,1740408672484,-500.0,0.00016849,2]
[354321150,1740408672494,-688.78,0.00016849,2]
[354321151,1740408672503,-500.0,0.00016849,2]
[354321152,1740408672513,-723.37,0.00016849,2]
[354321153,1740408672523,-1029.83,0.00016849,2]
[354321154,1740408672532,-603.83,0.00016849,2]
[354321155,1740408672547,-500.0,0.00016849,2]
[354321156,1740408672557,-603.78,0.00016849,2]
[354321157,1740408672567,-500.0,0.00016849,2]
[354321158,1740408672576,-500.0,0.00016849,2]
[354321159,1740408672586,-554.99,0.00016849,2]
[354321160,1740408672596,-500.0,0.00016849,2]
[354321161,1740408672606,-507.08,0.00016849,2]
[354321162,1740408672615,-613.4,0.00016849,2]
[354321163,1740408672625,-987.03,0.00016849,2]
[354321164,1740408672634,-500.0,0.00016849,2]
[354321165,1740408672644,-554.99,0.00016849,2]
[354321166,1740408672653,-403.79434188,0.00016849,2]
[354321167,1740408672663,-621.32,0.00016849,2]
[354321168,1740408672672,-500.0,0.00016849,2]
[354321169,1740408672682,-500.0,0.00016849,2]
[354321170,1740408672691,-500.0,0.00016849,2]
[354321171,1740408672701,-500.0,0.00016849,2]
[354321172,1740408672712,-500.0,0.00016849,2]
[354321173,1740408672722,-500.0,0.00016849,2]
[354321174,1740408672732,-807.75,0.00016849,2]
[354321175,1740408672742,-449.98434806,0.00016849,2]
[354321176,1740408672752,-947.05,0.00016849,2]
[354321177,1740408672762,-500.0,0.00016849,2]
[354321178,1740408672773,-500.0,0.00016849,2]
[354321179,1740408672783,-500.0,0.00016849,2]
[354321180,1740408672798,-603.05,0.00016849,2]
[354321181,1740408672809,-630.89,0.00016849,2]
[354321182,1740408672819,-500.0,0.00016849,2]
[354321183,1740408672829,-500.0,0.00016849,2]
[354321184,1740408672840,-500.0,0.00016849,2]
[354321185,1740408672850,-500.0,0.00016849,2]
[354321186,1740408672860,-500.0,0.00016849,2]
[354321187,1740408672870,-1132.31,0.00016849,2]
[354321188,1740408672880,-500.0,0.00016849,2]
[354321189,1740408672890,-830.88,0.00016849,2]
[354321190,1740408672900,-621.43,0.00016849,2]
[354321191,1740408672910,-500.0,0.00016849,2]
[354321192,1740408672919,-556.24,0.00016849,2]
[354321193,1740408672929,-552.56670679,0.00016849,2]
[354321194,1740408672939,-514.91,0.00016849,2]
[354321195,1740408672949,-500.0,0.00016849,2]
[354321196,1740408672959,-500.0,0.00016849,2]
[354321197,1740408672968,-708.48,0.00016849,2]
[354321198,1740408672978,-500.0,0.00016849,2]
[354321199,1740408672988,-659.89,0.00016849,2]
[354321200,1740408672998,-500.0,0.00016849,2]
[354321201,1740408673008,-500.0,0.00016849,2]
[354321202,1740408673019,-895.1,0.00016849,2]
[354321203,1740408673029,-857.63,0.00016849,2]
[354321204,1740408673039,-306.792949,0.00016849,2]
[354321205,1740408673049,-500.0,0.00016849,2]
[354321206,1740408673060,-500.0,0.00016849,2]
[354321207,1740408673070,-500.0,0.00016849,2]
[354321208,1740408673080,-500.0,0.00016849,2]
[354321209,1740408673090,-500.0,0.00016849,2]
[354321210,1740408673100,-500.0,0.00016849,2]
[354321211,1740408673110,-421.813031,0.00016849,2]
[354321212,1740408673123,-500.0,0.00016849,2]
[354321213,1740408673133,-542.71,0.00016849,2]
[354321214,1740408673143,-340.85496977,0.00016849,2]
[354321215,1740408673154,-500.0,0.00016849,2]
[354321216,1740408673168,-500.0,0.00016849,2]
[354321217,1740408673178,-500.0,0.00016849,2]
[354321218,1740408673187,-413.38782339,0.00016849,2]
[354321219,1740408673199,-644.27951832,0.00016849,2]
[354321220,1740408673209,-500.0,0.00016849,2]
[354321221,1740408673219,-500.0,0.00016849,2]
[354321222,1740408673229,-500.0,0.00016849,2]
[354321223,1740408673239,-500.0,0.00016849,2]
[354321224,1740408673335,-500.0,0.00016849,2]
[354321225,1740408673347,-500.0,0.00016849,2]
[354321226,1740408673359,-739.25,0.00016849,2]
[354321227,1740408673370,-500.0,0.00016849,2]
[354321228,1740408673380,-1051.43,0.00016849,2]
[354321229,1740408673390,-552.82,0.00016849,2]
[354321230,1740408673399,-500.0,0.00016849,2]
[354321231,1740408673410,-952.15,0.00016849,2]
[354321232,1740408673420,-500.0,0.00016849,2]
[354321233,1740408673429,-500.0,0.00016849,2]
[354321234,1740408673440,-500.0,0.00016849,2]
[354321235,1740408673449,-989.53,0.00016849,2]
[354321236,1740408673460,-500.0,0.00016849,2]
[354321237,1740408673469,-785.99,0.00016849,2]
[354321238,1740408673479,-537.4536123,0.00016849,2]
[354321239,1740408673489,-500.0,0.00016849,2]
[354321240,1740408673498,-574.6,0.00016849,2]
[354321241,1740408673508,-500.0,0.00016849,2]
[354321242,1740408673518,-1016.6,0.00016849,2]
[354321243,1740408673527,-1187.96,0.00016849,2]
[354321244,1740408673540,-918.17,0.00016849,2]
[354321245,1740408673550,-500.0,0.00016849,2]
[354321246,1740408673560,-510.92,0.00016849,2]
[354321247,1740408673570,-1105.56,0.00016849,2]
[354321248,1740408673580,-883.83,0.00016849,2]
[354321249,1740408673590,-500.0,0.00016849,2]
[354321250,1740408673599,-500.0,0.00016849,2]
[354321251,1740408673609,-810.38,0.00016849,2]
[354321252,1740408673619,-500.0,0.00016849,2]
[354321253,1740408673629,-594.95,0.00016849,2]
[354321254,1740408673639,-708.88,0.00016849,2]
[354321255,1740408673648,-500.0,0.00016849,2]
[354321256,1740408673658,-500.0,0.00016849,2]
[354321257,1740408673667,-450.80819256,0.00016849,2]
[354321258,1740408673677,-560.44,0.00016849,2]
[354321259,1740408673687,-500.0,0.00016849,2]
[354321260,1740408673697,-500.0,0.00016849,2]
[354321261,1740408673707,-757.18,0.00016849,2]
[354321262,1740408673716,-500.0,0.00016849,2]
[354321263,1740408673726,-500.0,0.00016849,2]
[354321264,1740408673736,-500.0,0.00016849,2]
[354321265,1740408673746,-568.43,0.00016849,2]
[354321266,1740408673756,-1029.07,0.00016849,2]
[354321267,1740408673766,-500.0,0.00016849,2]
[354321268,1740408673776,-517.51103659,0.00016849,2]
[354321269,1740408673785,-561.96,0.00016849,2]
[354321270,1740408673798,-645.32,0.00016849,2]
[354321271,1740408673808,-500.0,0.00016849,2]
[354321272,1740408673817,-500.0,0.00016849,2]
[354321273,1740408673826,-500.0,0.00016849,2]
[354321274,1740408673836,-2078.19,0.00016849,2]
[354321275,1740408673845,-1012.69,0.00016849,2]
[354321276,1740408673855,-387.94137041,0.00016849,2]
[354321277,1740408673865,-500.0,0.00016849,2]
[354321278,1740408673875,-500.0,0.00016849,2]
[354321279,1740408673886,-612.9,0.00016849,2]
[354321280,1740408673896,-980.0,0.00016849,2]
[354321281,1740408673908,-508.72,0.00016849,2]
[354321282,1740408673918,-771.13,0.00016849,2]
[354321283,1740408673929,-547.65,0.00016849,2]
[354321284,1740408673941,-500.0,0.00016849,2]
[354321285,1740408673952,-867.19,0.00016849,2]
[354321286,1740408673962,-668.94,0.00016849,2]
[354321287,1740408673972,-263.31034882,0.00016849,2]
[354321288,1740408673982,-500.0,0.00016849,2]
[354321289,1740408673992,-1409.2,0.00016849,2]
[354321290,1740408674004,-1928.05,0.00016849,2]
[354321291,1740408674018,-1421.34,0.00016849,2]
[354321292,1740408674029,-577.13,0.00016849,2]
[354321293,1740408674043,-1844.12,0.00016849,2]
[354321294,1740408674054,-965.43,0.00016849,2]
[354321295,1740408674065,-582.73,0.00016849,2]
[354321296,1740408674076,-500.0,0.00016849,2]
[354321297,1740408674088,-500.0,0.00016849,2]
[354321298,1740408674099,-849.78,0.00016849,2]
[354321299,1740408674110,-1202.68,0.00016849,2]
[354321300,1740408674122,-2064.96,0.00016849,2]
[354321301,1740408674132,-829.61,0.00016849,2]
[354321302,1740408674146,-1638.47,0.00016849,2]
[354321303,1740408674158,-500.0,0.00016849,2]
[354321304,1740408674169,-500.0,0.00016849,2]
[354321305,1740408674180,-2101.64,0.00016849,2]
[354321306,1740408674191,-1075.91,0.00016849,2]
[354321307,1740408674201,-1786.12,0.00016849,2]
[354321308,1740408674211,-1063.59,0.00016849,2]
[354321309,1740408674222,-504.86195131,0.00016849,2]
[354321310,1740408674233,-500.0,0.00016849,2]
[354321311,1740408674244,-623.6,0.00016849,2]
[354321312,1740408674255,-552.83,0.00016849,2]
[354321313,1740408674264,-500.0,0.00016849,2]
[354321314,1740408674274,-548.02,0.00016849,2]
[354321315,1740408674284,-564.88,0.00016849,2]
[354321316,1740408674297,-506.48,0.00016849,2]
[354321317,1740408674308,-500.0,0.00016849,2]
[354321318,1740408674320,-1830.0,0.00016849,2]
[354321319,1740408674330,-500.0,0.00016849,2]
[354321320,1740408674341,-500.0,0.00016849,2]
[354321321,1740408674351,-500.0,0.00016849,2]
[354321322,1740408674363,-799.95,0.00016849,2]
[354321323,1740408674375,-601.76,0.00016849,2]
[354321324,1740408674386,-1492.05,0.00016849,2]
[354321325,1740408674398,-500.0,0.00016849,2]
[354321326,1740408674409,-174.53409336,0.00016849,2]
[354321327,1740408674422,-953.1,0.00016849,2]
[354321328,1740408674433,-1485.8,0.00016849,2]
[354321329,1740408674443,-500.0,0.00016849,2]
[354321330,1740408674454,-500.0,0.00016849,2]
[354321331,1740408674465,-1831.82,0.00016849,2]
[354321332,1740408674475,-500.0,0.00016849,2]
[354321333,1740408674486,-558.93,0.00016849,2]
[354321334,1740408674498,-853.69,0.00016849,2]
[354321335,1740408674510,-2226.08,0.00016849,2]
[354321336,1740408674522,-1727.17,0.00016849,2]
[354321337,1740408674533,-1260.45,0.00016849,2]
[354321338,1740408674548,-243.49901637,0.00016849,2]
[354321339,1740408674559,-293.03,0.00016849,7]
[354321340,1740408674571,-1732.9,0.00016849,2]
[354321341,1740408674582,-837.39,0.00016849,2]
[354321342,1740408674593,-500.0,0.00016849,2]
[354321343,1740408674605,-2820.67,0.00016849,2]
[354321344,1740408674615,-1781.49,0.00016849,2]
[354321345,1740408674626,-1814.26,0.00016849,2]
[354321346,1740408674637,-1378.99,0.00016849,2]
[354321347,1740408674647,-542.06,0.00016849,2]
[354321348,1740408674658,-500.0,0.00016849,2]
[354321349,1740408674668,-500.0,0.00016849,2]
[354321350,1740408674678,-500.0,0.00016849,2]
[354321351,1740408674688,-500.0,0.00016849,2]
[354321352,1740408674704,-500.0,0.00016849,2]
[354321353,1740408674715,-503.68,0.00016849,2]
[354321354,1740408674725,-902.17,0.00016849,2]
[354321355,1740408674735,-1113.82,0.00016849,2]
[354321356,1740408674745,-1020.41,0.00016849,2]
[354321357,1740408674756,-855.0,0.00016849,2]
[354321358,1740408674767,-2365.06,0.00016849,2]
[354321359,1740408674776,-2236.0,0.00016849,2]
[354321360,1740408674789,-1788.53,0.00016849,2]
[354321361,1740408674888,-614.29,0.00016849,2]
[354321362,1740408674902,-500.0,0.00016849,2]
[354321363,1740408674913,-509.2283016,0.00016849,2]
[354321364,1740408674923,-670.7,0.00016849,2]
[354321365,1740408674933,-500.0,0.00016849,2]
[354321366,1740408674944,-3047.91,0.00016849,2]
[354321367,1740408674954,-500.0,0.00016849,2]
[354321368,1740408674963,-2393.53,0.00016849,2]
[354321369,1740408674974,-813.27,0.00016849,2]
[354321370,1740408674984,-500.0,0.00016849,2]
[354321371,1740408674994,-2168.8,0.00016849,2]
[354321372,1740408675004,-500.0,0.00016849,2]
[354321373,1740408675015,-2139.66,0.00016849,2]
[354321374,1740408675026,-500.0,0.00016849,2]
[354321375,1740408675037,-500.0,0.00016849,2]
[354321376,1740408675049,-704.57,0.00016849,2]
[354321377,1740408675059,-500.0,0.00016849,2]
[354321378,1740408675069,-500.0,0.00016849,2]
[354321379,1740408675079,-926.55,0.00016849,2]
[354321380,1740408675089,-2142.33,0.00016849,2]
[354321381,1740408675099,-1890.91,0.00016849,2]
[354321382,1740408675108,-500.0,0.00016849,2]
[354321383,1740408675121,-1950.51,0.00016849,2]
[354321384,1740408675132,-500.0,0.00016849,2]
[354321385,1740408675142,-500.0,0.00016849,2]
[354321386,1740408675153,-560.47,0.00016849,2]
[354321387,1740408675163,-609.16,0.00016849,2]
[354321388,1740408675173,-1914.76,0.00016849,2]
[354321389,1740408675184,-565.85,0.00016849,2]
[354321390,1740408675195,-515.26,0.00016849,2]
[354321391,1740408675206,-500.0,0.00016849,2]
[354321392,1740408675217,-910.63,0.00016849,2]
[354321393,1740408675228,-500.0,0.00016849,2]
[354321394,1740408675239,-2295.31,0.00016849,2]
[354321395,1740408675250,-655.3,0.00016849,2]
[354321396,1740408675260,-544.29,0.00016849,2]
[354321397,1740408675271,-2211.12,0.00016849,2]
[354321398,1740408675281,-1974.62,0.00016849,2]
[354321399,1740408675295,-1141.38,0.00016849,2]
[354321400,1740408675306,-500.0,0.00016849,2]
[354321401,1740408675317,-500.0,0.00016849,2]
[354321402,1740408675328,-1252.34,0.00016849,2]
[354321403,1740408675338,-500.0,0.00016849,2]
[354321404,1740408675349,-2456.73,0.00016849,2]
[354321405,1740408675359,-563.66,0.00016849,2]
[354321406,1740408675369,-2322.07,0.00016849,2]
[354321407,1740408675380,-1387.77,0.00016849,2]
[354321408,1740408675391,-1289.44,0.00016849,2]
[354321409,1740408675400,-669.99,0.00016849,2]
[354321410,1740408675411,-1314.42,0.00016849,2]
[354321411,1740408675422,-500.0,0.00016849,2]
[354321412,1740408675433,-1092.99,0.00016849,2]
[354321413,1740408675444,-500.0,0.00016849,2]
[354321414,1740408675454,-1353.03,0.00016849,2]
[354321415,1740408675465,-500.0,0.00016849,2]
[354321416,1740408675475,-687.08,0.00016849,2]
[354321417,1740408675485,-1198.61,0.00016849,2]
[354321418,1740408675495,-500.0,0.00016849,2]
[354321419,1740408675505,-837.42,0.00016849,2]
[354321420,1740408675515,-500.0,0.00016849,2]
[354321421,1740408675524,-2373.17,0.00016849,2]
[354321422,1740408675533,-500.0,0.00016849,2]
[354321423,1740408675545,-1253.26,0.00016849,2]
[354321424,1740408675555,-1358.45,0.00016849,2]
[354321425,1740408675565,-500.0,0.00016849,2]
[354321426,1740408675575,-500.0,0.00016849,2]
[354321427,1740408675585,-1016.84,0.00016849,2]
[354321428,1740408675595,-500.0,0.00016849,2]
[354321429,1740408675604,-1842.63,0.00016849,2]
[354321430,1740408675615,-3100.07,0.00016849,2]
[354321431,1740408675624,-688.57,0.00016849,2]
[354321432,1740408675634,-500.0,0.00016849,2]
[354321433,1740408675644,-949.52,0.00016849,2]
[354321434,1740408675653,-500.0,0.00016849,2]
[354321435,1740408675663,-524.98,0.00016849,2]
[354321436,1740408675673,-500.0,0.00016849,2]
[354321437,1740408675682,-1387.0,0.00016849,2]
[354321438,1740408675691,-1332.09,0.00016849,2]
[354321439,1740408675700,-500.0,0.00016849,2]
[354321440,1740408675710,-500.0,0.00016849,2]
[354321441,1740408675720,-2190.36,0.00016849,2]
[354321442,1740408675730,-500.0,0.00016849,2]
[354321443,1740408675740,-1398.63,0.00016849,2]
[354321444,1740408675749,-566.65,0.00016849,2]
[354321445,1740408675759,-2208.91,0.00016849,2]
[354321446,1740408675768,-1268.58,0.00016849,2]
[354321447,1740408675778,-2023.71,0.00016849,2]
[354321448,1740408675788,-500.0,0.00016849,2]
[354321449,1740408675799,-1286.76,0.00016849,2]
[354321450,1740408675809,-500.0,0.00016849,2]
[354321451,1740408675820,-500.0,0.00016849,2]
[354321452,1740408675830,-2373.16,0.00016849,2]
[354321453,1740408675840,-500.0,0.00016849,2]
[354321454,1740408675850,-1388.45,0.00016849,2]
[354321455,1740408675859,-1370.27,0.00016849,2]
[354321456,1740408675869,-782.35,0.00016849,2]
[354321457,1740408675879,-500.0,0.00016849,2]
[354321458,1740408675889,-5779.52635391,0.0001685,2]
[354321459,1740408675899,-150.0,0.00016869,2]
[354321460,1740408675908,-207.91875491,0.000169,2]
[354321461,1740408675919,-150.0,0.00016901,2]
[354321462,1740408675929,-152.06,0.00016918,2]
[354321463,1740408675938,-151.82,0.00016918,2]
[354321464,1740408675947,-150.0,0.00016928,2]
[354321465,1740408675957,-500.0,0.00016929,2]
[354321466,1740408675967,-500.0,0.00016929,2]
[354321467,1740408675976,-500.0,0.00016929,2]
[354321468,1740408675985,-551.76919743,0.00016929,2]
[354321469,1740408675994,-500.0,0.00016929,2]
[354321470,1740408676004,-500.0,0.00016929,2]
[354321471,1740408676013,-500.0,0.00016929,2]
[354321472,1740408676022,-500.0,0.00016929,2]
[354321473,1740408676031,-500.0,0.00016929,2]
[354321474,1740408676043,-500.0,0.00016929,2]
[354321475,1740408676052,-500.0,0.00016929,2]
[354321476,1740408676061,-500.0,0.00016929,2]
[354321477,1740408676070,-1499.95,0.0001693,2]
[354321478,1740408676079,-1949.65,0.0001693,2]
[354321479,1740408676089,-1432.1,0.0001693,2]
[354321480,1740408676098,-2330.4,0.0001693,2]
[354321481,1740408676107,-933.09,0.0001693,2]
[354321482,1740408676118,-1906.14,0.0001693,2]
[354321483,1740408676128,-2087.51,0.0001693,2]
[354321484,1740408676139,-737.28,0.0001693,2]
[354321485,1740408676150,-634.72,0.0001693,2]
[354321486,1740408676161,-500.0,0.0001693,2]
[354321487,1740408676171,-1000.72,0.0001693,2]
[354321488,1740408676260,-2916.32,0.0001693,2]
[354321489,1740408676270,-1922.29,0.0001693,2]
[354321490,1740408676280,-1193.44,0.0001693,2]
[354321491,1740408676292,-1316.8,0.0001693,2]
[354321492,1740408676302,-500.0,0.0001693,2]
[354321493,1740408676313,-1924.63,0.0001693,2]
[354321494,1740408676322,-2194.28,0.0001693,2]
[354321495,1740408676332,-1198.63,0.0001693,2]
[354321496,1740408676342,-3353.19,0.0001693,2]
[354321497,1740408676352,-500.0,0.00016931,2]
[354321498,1740408676361,-500.0,0.00016931,7]
[354321499,1740408676371,-500.0,0.00016931,2]
[354321500,1740408676380,-500.0,0.00016931,2]
[354321501,1740408676392,-500.0,0.00016931,2]
[354321502,1740408676402,-500.0,0.00016931,2]
[354321503,1740408676412,-500.0,0.00016931,2]
[354321504,1740408676422,-511.18029424,0.00016931,2]
[354321505,1740408676432,-500.0,0.00016931,2]
[354321506,1740408676442,-500.0,0.00016931,2]
[354321507,1740408676451,-500.0,0.00016931,2]
[354321508,1740408676460,-500.0,0.00016931,2]
[354321509,1740408676469,-500.0,0.00016931,2]
[354321510,1740408676479,-500.0,0.00016931,2]
[354321511,1740408676489,-500.0,0.00016931,2]
[354321512,1740408676497,-500.0,0.00016931,2]
[354321513,1740408676506,-500.0,0.00016931,2]
[354321514,1740408676515,-500.0,0.00016931,2]
[354321515,1740408676524,-513.48,0.00016931,2]
[354321516,1740408676533,-500.0,0.00016931,2]
[354321517,1740408676545,-705.72,0.00016931,2]
[354321518,1740408676554,-500.0,0.00016931,2]
[354321519,1740408676564,-500.0,0.00016931,2]
[354321520,1740408676573,-700.78,0.00016931,2]
[354321521,1740408676583,-500.0,0.00016931,2]
[354321522,1740408676592,-500.0,0.00016931,2]
[354321523,1740408676601,-500.0,0.00016931,2]
[354321524,1740408676610,-500.0,0.00016931,2]
[354321525,1740408676619,-871.23,0.00016931,2]
[354321526,1740408676628,-552.51,0.00016931,2]
[354321527,1740408676638,-500.0,0.00016931,2]
[354321528,1740408676648,-500.0,0.00016931,2]
[354321529,1740408676657,-500.0,0.00016931,2]
[354321530,1740408676667,-500.0,0.00016931,2]
[354321531,1740408676676,-500.0,0.00016931,2]
[354321532,1740408676685,-910.6,0.00016931,2]
[354321533,1740408676694,-500.0,0.00016931,2]
[354321534,1740408676704,-500.0,0.00016931,2]
[354321535,1740408676713,-500.0,0.00016931,2]
[354321536,1740408676722,-500.0,0.00016931,2]
[354321537,1740408676732,-625.53,0.00016931,2]
[354321538,1740408676741,-500.0,0.00016931,2]
[354321539,1740408676750,-500.0,0.00016931,2]
[354321540,1740408676759,-500.0,0.00016931,2]
[354321541,1740408676769,-500.0,0.00016931,2]
[354321542,1740408676778,-500.0,0.00016931,2]
[354321543,1740408676787,-508.9,0.00016931,2]
[354321544,1740408676798,-500.0,0.00016931,2]
[354321545,1740408676814,-500.0,0.00016931,2]
[354321546,1740408676831,-658.85,0.00016931,2]
[354321547,1740408676849,-500.0,0.00016931,2]
[354321548,1740408676868,-647.16,0.00016931,2]
[354321549,1740408676883,-500.0,0.00016931,2]
[354321550,1740408676901,-500.0,0.00016931,2]
[354321551,1740408676918,-792.13,0.00016931,2]
[354321552,1740408676938,-500.0,0.00016931,2]
[354321553,1740408676956,-500.0,0.00016931,2]
[354321554,1740408676973,-500.0,0.00016931,2]
[354321555,1740408676990,-500.0,0.00016931,2]
[354321556,1740408677004,-500.0,0.00016931,2]
[354321557,1740408677022,-685.76,0.00016931,2]
[354321558,1740408677035,-500.0,0.00016931,2]
[354321559,1740408677055,-500.0,0.00016931,2]
[354321560,1740408677068,-500.0,0.00016931,2]
[354321561,1740408677083,-500.0,0.00016931,2]
[354321562,1740408677098,-500.0,0.00016931,2]
[354321563,1740408677113,-230.06628456,0.00016931,2]
[354321564,1740408677129,-500.0,0.00016931,2]
[354321565,1740408677146,-500.0,0.00016931,2]
[354321566,1740408677161,-500.0,0.00016931,2]
[354321567,1740408677176,-500.0,0.00016931,2]
[354321568,1740408677191,-500.0,0.00016931,2]
[354321569,1740408677206,-500.0,0.00016931,2]
[354321570,1740408677221,-713.57,0.00016931,2]
[354321571,1740408677236,-500.0,0.00016931,2]
[354321572,1740408677251,-792.45,0.00016931,2]
[354321573,1740408677266,-516.41,0.00016931,2]
[354321574,1740408677280,-500.0,0.00016931,2]
[354321575,1740408677297,-500.0,0.00016931,2]
[354321576,1740408677312,-500.0,0.00016931,2]
[354321577,1740408677327,-361.0788465,0.00016931,2]
[354321578,1740408677342,-977.59,0.00016931,2]
[354321579,1740408677357,-500.33,0.00016931,2]
[354321580,1740408677373,-688.78,0.00016931,2]
[354321581,1740408677388,-500.0,0.00016931,2]
[354321582,1740408677403,-723.37,0.00016931,2]
[354321583,1740408677419,-1029.83,0.00016931,2]
[354321584,1740408677434,-603.83,0.00016931,2]
[354321585,1740408677450,-500.0,0.00016931,2]
[354321586,1740408677469,-603.78,0.00016931,2]
[354321587,1740408677485,-500.0,0.00016931,2]
[354321588,1740408677501,-500.0,0.00016931,2]
[354321589,1740408677517,-554.99,0.00016931,2]
[354321590,1740408677532,-500.0,0.00016931,2]
[354321591,1740408677551,-507.08,0.00016931,2]
[354321592,1740408677567,-613.4,0.00016931,2]
[354321593,1740408677582,-987.03,0.00016931,2]
[354321594,1740408677598,-500.0,0.00016931,2]
[354321595,1740408677614,-554.99,0.00016931,2]
[354321596,1740408677629,-621.32,0.00016931,2]
[354321597,1740408677644,-500.0,0.00016931,2]
[354321598,1740408677659,-500.0,0.00016931,2]
[354321599,1740408677674,-500.0,0.00016931,2]
[354321600,1740408677688,-500.0,0.00016931,2]
[354321601,1740408677703,-500.0,0.00016931,2]
[354321602,1740408677719,-500.0,0.00016931,2]
[354321603,1740408677734,-807.75,0.00016931,2]
[354321604,1740408677749,-947.05,0.00016931,2]
[354321605,1740408677871,-500.0,0.00016931,2]
[354321606,1740408677881,-500.0,0.00016931,2]
[354321607,1740408677891,-500.0,0.00016931,2]
[354321608,1740408677900,-630.89,0.00016931,2]
[354321609,1740408677913,-603.05,0.00016931,2]
[354321610,1740408677923,-500.0,0.00016931,2]
[354321611,1740408677932,-500.0,0.00016931,2]
[354321612,1740408677941,-500.0,0.00016931,2]
[354321613,1740408677950,-500.0,0.00016931,2]
[354321614,1740408677959,-1132.31,0.00016931,2]
[354321615,1740408677968,-500.0,0.00016931,2]
[354321616,1740408677978,-830.88,0.00016931,2]
[354321617,1740408677987,-621.43,0.00016931,2]
[354321618,1740408677996,-500.0,0.00016931,2]
[354321619,1740408678005,-556.24,0.00016931,2]
[354321620,1740408678015,-514.91,0.00016931,2]
[354321621,1740408678025,-500.0,0.00016931,2]
[354321622,1740408678035,-708.48,0.00016931,2]
[354321623,1740408678050,-500.0,0.00016931,2]
[354321624,1740408678059,-659.89,0.00016931,2]
[354321625,1740408678070,-500.0,0.00016931,2]
[354321626,1740408678080,-500.0,0.00016931,2]
[354321627,1740408678090,-895.1,0.00016931,2]
[354321628,1740408678100,-857.63,0.00016931,2]
[354321629,1740408678110,-306.792949,0.00016931,2]
[354321630,1740408678126,-500.0,0.00016931,2]
[354321631,1740408678136,-500.0,0.00016931,2]
[354321632,1740408678147,-358.19467814,0.00016931,2]
[354321633,1740408678158,-500.0,0.00016931,2]
[354321634,1740408678171,-500.0,0.00016931,2]
[354321635,1740408678181,-500.0,0.00016931,2]
[354321636,1740408678192,-421.813031,0.00016931,2]
[354321637,1740408678202,-592.72747874,0.00016931,2]
[354321638,1740408678213,-542.71,0.00016931,2]
[354321639,1740408678224,-573.6237165,0.00016931,2]
[354321640,1740408678234,-500.0,0.00016931,2]
[354321641,1740408678243,-500.0,0.00016931,2]